[Event "Titled Tuesday Blitz March 22 Late 2022"]
[White "Tregubov, Pavel V."]
[Black "Van den Dikkenberg, Erik"]
[WhiteFideId "4115341"]
[BlackFideId "1005880"]
[WhiteElo "2341"]
[BlackElo "2118"]
[Result "1-0"]
[Round "01"]
[TimeControl "180+1"]
[Date "2022.03.22"]
[WhiteClock "0:00:19"]
[BlackClock "0:00:10"]

1. e4 {[%clk 0:03:00]}  c5 {[%clk 0:02:56]} 2. Nf3 {[%clk 0:03:00]}  d6 {[%clk 0:02:57]} 3. Bb5+ {[%clk 0:03:00]}  Nd7 {[%clk 0:02:56]} 4. Ba4 {[%clk 0:03:00]}  Nf6 {[%clk 0:02:56]} 5. O-O {[%clk 0:02:59]}  g6 {[%clk 0:02:56]} 6. Re1 {[%clk 0:02:58]}  Bg7 {[%clk 0:02:56]} 7. c3 {[%clk 0:02:59]}  O-O {[%clk 0:02:57]} 8. d4 {[%clk 0:02:59]}  a6 {[%clk 0:02:54]} 9. e5 {[%clk 0:02:52]}  dxe5 {[%clk 0:02:37]} 10. dxe5 {[%clk 0:02:52]}  Ng4 {[%clk 0:02:30]} 11. e6 {[%clk 0:02:29]}  fxe6 {[%clk 0:02:21]} 12. Bb3 {[%clk 0:02:29]}  Nde5 {[%clk 0:02:14]} 13. Qxd8 {[%clk 0:02:28]}  Rxd8 {[%clk 0:02:14]} 14. Nxe5 {[%clk 0:02:08]}  Nxe5 {[%clk 0:02:10]} 15. Be3 {[%clk 0:01:56]}  c4 {[%clk 0:02:01]} 16. Bc2 {[%clk 0:01:56]}  Nd3 {[%clk 0:01:57]} 17. Bxd3 {[%clk 0:01:51]}  Rxd3 {[%clk 0:01:40]} 18. a4 {[%clk 0:01:50]}  e5 {[%clk 0:01:37]} 19. Nd2 {[%clk 0:01:45]}  Be6 {[%clk 0:01:37]} 20. Ne4 {[%clk 0:01:44]}  Rc8 {[%clk 0:01:14]} 21. Bb6 {[%clk 0:01:39]}  Rc6 {[%clk 0:01:07]} 22. a5 {[%clk 0:01:38]}  Bf5 {[%clk 0:01:01]} 23. Nc5 {[%clk 0:01:38]}  Rd2 {[%clk 0:00:57]} 24. Ra2 {[%clk 0:01:24]}  e4 {[%clk 0:00:52]} 25. Ra4 {[%clk 0:01:07]}  Rxb2 {[%clk 0:00:47]} 26. Rxc4 {[%clk 0:01:07]}  Rc2 {[%clk 0:00:37]} 27. h3 {[%clk 0:01:05]}  Rxc3 {[%clk 0:00:35]} 28. Rxc3 {[%clk 0:01:02]}  Bxc3 {[%clk 0:00:35]} 29. Rd1 {[%clk 0:01:02]}  Bxa5 {[%clk 0:00:32]} 30. Bxa5 {[%clk 0:00:39]}  Rxc5 {[%clk 0:00:32]} 31. Bb6 {[%clk 0:00:38]}  Rc6 {[%clk 0:00:31]} 32. Be3 {[%clk 0:00:37]}  Rd6 {[%clk 0:00:30]} 33. Rc1 {[%clk 0:00:37]}  Kf7 {[%clk 0:00:30]} 34. Rc7 {[%clk 0:00:37]}  Rd7 {[%clk 0:00:30]} 35. Rc5 {[%clk 0:00:36]}  Ke6 {[%clk 0:00:28]} 36. g4 {[%clk 0:00:36]}  Kd6 {[%clk 0:00:25]} 37. gxf5 {[%clk 0:00:36]}  gxf5 {[%clk 0:00:24]} 38. Rxf5 {[%clk 0:00:36]}  Ke6 {[%clk 0:00:24]} 39. Rh5 {[%clk 0:00:36]}  b5 {[%clk 0:00:22]} 40. Rh6+ {[%clk 0:00:36]}  Kd5 {[%clk 0:00:21]} 41. Rxa6 {[%clk 0:00:36]}  Kc4 {[%clk 0:00:21]} 42. Rc6+ {[%clk 0:00:36]}  Kb3 {[%clk 0:00:20]} 43. Rb6 {[%clk 0:00:35]}  b4 {[%clk 0:00:20]} 44. Bc5 {[%clk 0:00:35]}  Kc4 {[%clk 0:00:19]} 45. Bxb4 {[%clk 0:00:34]}  Kd3 {[%clk 0:00:17]} 46. Bc5 {[%clk 0:00:34]}  Ke2 {[%clk 0:00:17]} 47. Re6 {[%clk 0:00:32]}  Rd5 {[%clk 0:00:15]} 48. Be3 {[%clk 0:00:25]}  Kf3 {[%clk 0:00:15]} 49. Rxe7 {[%clk 0:00:23]}  Rd1+ {[%clk 0:00:15]} 50. Kh2 {[%clk 0:00:23]}  h5 {[%clk 0:00:14]} 51. Rf7+ {[%clk 0:00:23]}  Ke2 {[%clk 0:00:14]} 52. Kg3 {[%clk 0:00:23]}  Rg1+ {[%clk 0:00:13]} 53. Kh4 {[%clk 0:00:23]}  Rg2 {[%clk 0:00:13]} 54. Kxh5 {[%clk 0:00:22]}  Rh2 {[%clk 0:00:13]} 55. h4 {[%clk 0:00:22]}  Rh3 {[%clk 0:00:12]} 56. Kg5 {[%clk 0:00:21]}  Kd3 {[%clk 0:00:10]} 57. h5 {[%clk 0:00:21]}  Kc4 {[%clk 0:00:10]} 58. h6 {[%clk 0:00:21]}  Kd5 {[%clk 0:00:09]} 59. h7 {[%clk 0:00:19]}  Ke6 {[%clk 0:00:10]} 60. Ra7 {[%clk 0:00:19]}  Kd5 {[%clk 0:00:10]} 61. Kg6 {[%clk 0:00:19]}  Ke5 {[%clk 0:00:10]} 62. Ra8 {[%clk 0:00:19]} 1-0


[Site "https://www.chess.com"]

[Event "Titled Tuesday Blitz March 22 Late 2022"]
[White "Urazayev, Arystanbek"]
[Black "Vusatiuk, Vladimir"]
[WhiteFideId "13709810"]
[BlackFideId "14118610"]
[WhiteElo "2393"]
[BlackElo "2157"]
[Result "1-0"]
[Round "01"]
[TimeControl "180+1"]
[Date "2022.03.22"]
[WhiteClock "0:01:54"]
[BlackClock "0:00:08"]

1. d4 {[%clk 0:03:00]}  Nf6 {[%clk 0:02:59]} 2. c4 {[%clk 0:03:01]}  e6 {[%clk 0:02:59]} 3. Nc3 {[%clk 0:03:01]}  Bb4 {[%clk 0:02:57]} 4. Nf3 {[%clk 0:03:01]}  O-O {[%clk 0:02:56]} 5. Bg5 {[%clk 0:03:01]}  d5 {[%clk 0:02:41]} 6. e3 {[%clk 0:03:01]}  Nbd7 {[%clk 0:02:32]} 7. Rc1 {[%clk 0:02:58]}  h6 {[%clk 0:02:19]} 8. Bh4 {[%clk 0:02:58]}  c6 {[%clk 0:02:09]} 9. Bd3 {[%clk 0:02:53]}  Re8 {[%clk 0:01:56]} 10. O-O {[%clk 0:02:52]}  dxc4 {[%clk 0:01:18]} 11. Bxc4 {[%clk 0:02:53]}  b5 {[%clk 0:01:18]} 12. Bd3 {[%clk 0:02:51]}  Bb7 {[%clk 0:01:18]} 13. Ne4 {[%clk 0:02:46]}  Be7 {[%clk 0:01:14]} 14. Nc5 {[%clk 0:02:41]}  Nxc5 {[%clk 0:01:12]} 15. dxc5 {[%clk 0:02:42]}  Qd5 {[%clk 0:01:01]} 16. Qc2 {[%clk 0:02:42]}  Rad8 {[%clk 0:00:54]} 17. Rfd1 {[%clk 0:02:38]}  Qh5 {[%clk 0:00:45]} 18. Bg3 {[%clk 0:02:39]}  Nd5 {[%clk 0:00:39]} 19. a3 {[%clk 0:02:39]}  Bf6 {[%clk 0:00:36]} 20. Be2 {[%clk 0:02:36]}  a5 {[%clk 0:00:20]} 21. e4 {[%clk 0:02:36]}  Ne7 {[%clk 0:00:17]} 22. Ne5 {[%clk 0:02:35]}  Qxe5 {[%clk 0:00:15]} 23. Bxe5 {[%clk 0:02:35]}  Bxe5 {[%clk 0:00:16]} 24. Rxd8 {[%clk 0:02:35]}  Rxd8 {[%clk 0:00:17]} 25. Rd1 {[%clk 0:02:36]}  Bd4 {[%clk 0:00:17]} 26. b4 {[%clk 0:02:35]}  a4 {[%clk 0:00:17]} 27. g3 {[%clk 0:02:35]}  e5 {[%clk 0:00:17]} 28. Kg2 {[%clk 0:02:36]}  Bc8 {[%clk 0:00:17]} 29. h3 {[%clk 0:02:25]}  Be6 {[%clk 0:00:17]} 30. Rb1 {[%clk 0:02:19]}  f6 {[%clk 0:00:16]} 31. Bg4 {[%clk 0:02:18]}  Bc4 {[%clk 0:00:15]} 32. h4 {[%clk 0:02:18]}  g6 {[%clk 0:00:10]} 33. h5 {[%clk 0:02:18]}  g5 {[%clk 0:00:11]} 34. Be2 {[%clk 0:02:07]}  Be6 {[%clk 0:00:10]} 35. Rf1 {[%clk 0:02:04]}  f5 {[%clk 0:00:08]} 36. exf5 {[%clk 0:02:02]}  Nxf5 {[%clk 0:00:09]} 37. Bd3 {[%clk 0:02:01]}  Ne7 {[%clk 0:00:08]} 38. Be4 {[%clk 0:02:01]}  Nd5 {[%clk 0:00:06]} 39. Kh2 {[%clk 0:01:52]}  Kh8 {[%clk 0:00:06]} 40. Bxd5 {[%clk 0:01:48]}  cxd5 {[%clk 0:00:05]} 41. Qg6 {[%clk 0:01:48]}  Bg4 {[%clk 0:00:03]} 42. Qxh6+ {[%clk 0:01:49]}  Kg8 {[%clk 0:00:04]} 43. Qxg5+ {[%clk 0:01:49]}  Kf7 {[%clk 0:00:04]} 44. Qxd8 {[%clk 0:01:50]}  Be2 {[%clk 0:00:04]} 45. Qxd5+ {[%clk 0:01:50]}  Kf6 {[%clk 0:00:05]} 46. Re1 {[%clk 0:01:49]}  Bxh5 {[%clk 0:00:05]} 47. Qd6+ {[%clk 0:01:49]}  Kf5 {[%clk 0:00:05]} 48. Qd7+ {[%clk 0:01:49]}  Kg5 {[%clk 0:00:05]} 49. f4+ {[%clk 0:01:48]}  exf4 {[%clk 0:00:05]} 50. Qxd4 {[%clk 0:01:49]}  f3 {[%clk 0:00:06]} 51. Re5+ {[%clk 0:01:48]}  Kh6 {[%clk 0:00:06]} 52. Qd6+ {[%clk 0:01:49]}  Bg6 {[%clk 0:00:06]} 53. Re7 {[%clk 0:01:50]}  f2 {[%clk 0:00:06]} 54. Qf4+ {[%clk 0:01:51]}  Kh5 {[%clk 0:00:06]} 55. Re5+ {[%clk 0:01:51]}  Bf5 {[%clk 0:00:06]} 56. Rxf5+ {[%clk 0:01:52]}  Kg6 {[%clk 0:00:06]} 57. Qg5+ {[%clk 0:01:53]}  Kh7 {[%clk 0:00:07]} 58. Rf7+ {[%clk 0:01:53]}  Kh8 {[%clk 0:00:08]} 59. Qg7# {[%clk 0:01:54]} 1-0


[Site "https://www.chess.com"]

[Event "Titled Tuesday Blitz March 22 Late 2022"]
[White "Urbina Perez, Juan Antonio"]
[Black "Shimanov, Aleksandr"]
[WhiteFideId "2217368"]
[BlackFideId "4198603"]
[WhiteElo "2192"]
[BlackElo "2636"]
[Result "0-1"]
[Round "01"]
[TimeControl "180+1"]
[Date "2022.03.22"]
[WhiteClock "0:01:01"]
[BlackClock "0:01:21"]

1. e4 {[%clk 0:02:58]}  c6 {[%clk 0:02:58]} 2. d4 {[%clk 0:02:57]}  d5 {[%clk 0:02:58]} 3. e5 {[%clk 0:02:57]}  Bf5 {[%clk 0:02:58]} 4. Nd2 {[%clk 0:02:57]}  e6 {[%clk 0:02:57]} 5. Nb3 {[%clk 0:02:58]}  Nd7 {[%clk 0:02:56]} 6. Nf3 {[%clk 0:02:58]}  a6 {[%clk 0:02:54]} 7. a4 {[%clk 0:02:57]}  Qc7 {[%clk 0:02:49]} 8. Be2 {[%clk 0:02:57]}  c5 {[%clk 0:02:49]} 9. dxc5 {[%clk 0:02:57]}  Bxc5 {[%clk 0:02:50]} 10. Nxc5 {[%clk 0:02:57]}  Qxc5 {[%clk 0:02:51]} 11. O-O {[%clk 0:02:55]}  Qxc2 {[%clk 0:02:45]} 12. Qxc2 {[%clk 0:02:45]}  Bxc2 {[%clk 0:02:46]} 13. Nd4 {[%clk 0:02:45]}  Bg6 {[%clk 0:02:46]} 14. f4 {[%clk 0:02:45]}  Ne7 {[%clk 0:02:45]} 15. Be3 {[%clk 0:02:42]}  Rc8 {[%clk 0:02:44]} 16. Rac1 {[%clk 0:02:40]}  O-O {[%clk 0:02:42]} 17. Rxc8 {[%clk 0:02:41]}  Rxc8 {[%clk 0:02:41]} 18. Rc1 {[%clk 0:02:41]}  Rxc1+ {[%clk 0:02:41]} 19. Bxc1 {[%clk 0:02:42]}  Nc5 {[%clk 0:02:41]} 20. a5 {[%clk 0:02:29]}  Nf5 {[%clk 0:02:40]} 21. Nxf5 {[%clk 0:02:28]}  Bxf5 {[%clk 0:02:41]} 22. Be3 {[%clk 0:02:25]}  Nb3 {[%clk 0:02:40]} 23. Bb6 {[%clk 0:02:23]}  Kf8 {[%clk 0:02:37]} 24. Kf2 {[%clk 0:02:17]}  Na1 {[%clk 0:02:25]} 25. Bd1 {[%clk 0:02:10]}  Bc2 {[%clk 0:02:24]} 26. Be2 {[%clk 0:02:10]}  Be4 {[%clk 0:02:24]} 27. g3 {[%clk 0:02:07]}  Ke7 {[%clk 0:02:20]} 28. Ke3 {[%clk 0:02:06]}  Nc2+ {[%clk 0:02:19]} 29. Kd2 {[%clk 0:02:04]}  Kd7 {[%clk 0:02:13]} 30. Bd1 {[%clk 0:01:50]}  Nb4 {[%clk 0:02:13]} 31. Bc5 {[%clk 0:01:41]}  Nc6 {[%clk 0:02:07]} 32. Ba4 {[%clk 0:01:39]}  Ke8 {[%clk 0:01:55]} 33. Ke3 {[%clk 0:01:35]}  f6 {[%clk 0:01:55]} 34. g4 {[%clk 0:01:29]}  Kf7 {[%clk 0:01:45]} 35. h4 {[%clk 0:01:27]}  Nxa5 {[%clk 0:01:40]} 36. exf6 {[%clk 0:01:22]}  gxf6 {[%clk 0:01:39]} 37. g5 {[%clk 0:01:19]}  Nc4+ {[%clk 0:01:35]} 38. Kd4 {[%clk 0:01:15]}  Nxb2 {[%clk 0:01:27]} 39. Bd7 {[%clk 0:01:15]}  Nd3 {[%clk 0:01:25]} 40. Bd6 {[%clk 0:01:07]}  Ne1 {[%clk 0:01:21]} 41. gxf6 {[%clk 0:01:02]}  Nf3+ {[%clk 0:01:21]} 42. Ke3 {[%clk 0:01:01]}  Nxh4 {[%clk 0:01:21]} 43. Bc8 {[%clk 0:01:01]}  Nf5+ {[%clk 0:01:21]} 0-1


[Site "https://www.chess.com"]

[Event "Titled Tuesday Blitz March 22 Late 2022"]
[White "Vasquez Schroeder, Rodrigo"]
[Black "Msellek, Ilyass"]
[WhiteFideId "3400042"]
[BlackFideId "675938"]
[WhiteElo "2561"]
[BlackElo "2219"]
[Result "1-0"]
[Round "01"]
[TimeControl "180+1"]
[Date "2022.03.22"]
[WhiteClock "0:02:14"]
[BlackClock "0:00:04"]

1. e4 {[%clk 0:03:00]}  d6 {[%clk 0:02:57]} 2. d4 {[%clk 0:03:00]}  Nf6 {[%clk 0:02:58]} 3. Nc3 {[%clk 0:03:00]}  e5 {[%clk 0:02:58]} 4. Nf3 {[%clk 0:03:00]}  Nbd7 {[%clk 0:02:57]} 5. Bc4 {[%clk 0:03:00]}  Be7 {[%clk 0:02:57]} 6. O-O {[%clk 0:03:00]}  O-O {[%clk 0:02:57]} 7. Qe2 {[%clk 0:03:00]}  c6 {[%clk 0:02:57]} 8. Rd1 {[%clk 0:03:00]}  Qc7 {[%clk 0:02:56]} 9. a4 {[%clk 0:03:00]}  b6 {[%clk 0:02:55]} 10. d5 {[%clk 0:02:57]}  Bb7 {[%clk 0:02:51]} 11. dxc6 {[%clk 0:02:57]}  Bxc6 {[%clk 0:02:52]} 12. Bg5 {[%clk 0:02:57]}  Qb7 {[%clk 0:02:48]} 13. Bxf6 {[%clk 0:02:56]}  Nxf6 {[%clk 0:02:48]} 14. Nd5 {[%clk 0:02:55]}  Nxd5 {[%clk 0:02:44]} 15. Bxd5 {[%clk 0:02:54]}  Rac8 {[%clk 0:02:39]} 16. c4 {[%clk 0:02:52]}  Bxd5 {[%clk 0:02:33]} 17. Rxd5 {[%clk 0:02:51]}  Rc5 {[%clk 0:02:33]} 18. Rad1 {[%clk 0:02:49]}  Rfc8 {[%clk 0:02:32]} 19. b3 {[%clk 0:02:49]}  Rxd5 {[%clk 0:02:27]} 20. Rxd5 {[%clk 0:02:48]}  Rc5 {[%clk 0:02:26]} 21. Rxc5 {[%clk 0:02:44]}  bxc5 {[%clk 0:02:22]} 22. Qd3 {[%clk 0:02:44]}  g6 {[%clk 0:02:18]} 23. g3 {[%clk 0:02:42]}  h5 {[%clk 0:02:18]} 24. h4 {[%clk 0:02:40]}  Kg7 {[%clk 0:02:13]} 25. Nd2 {[%clk 0:02:40]}  Qb4 {[%clk 0:01:55]} 26. Nf1 {[%clk 0:02:37]}  Qb7 {[%clk 0:01:38]} 27. Ne3 {[%clk 0:02:37]}  a6 {[%clk 0:01:32]} 28. Kf1 {[%clk 0:02:36]}  Qb8 {[%clk 0:01:17]} 29. Ke2 {[%clk 0:02:33]}  Bd8 {[%clk 0:01:15]} 30. Nd5 {[%clk 0:02:31]}  Ba5 {[%clk 0:01:12]} 31. Qf3 {[%clk 0:02:28]}  Bd8 {[%clk 0:01:10]} 32. Kd2 {[%clk 0:02:26]}  Qc8 {[%clk 0:01:05]} 33. Ke2 {[%clk 0:02:22]}  Qb8 {[%clk 0:00:58]} 34. Kd1 {[%clk 0:02:21]}  Qc8 {[%clk 0:00:56]} 35. Kc1 {[%clk 0:02:20]}  Qb8 {[%clk 0:00:52]} 36. Kc2 {[%clk 0:02:19]}  Qc8 {[%clk 0:00:52]} 37. Qg2 {[%clk 0:02:17]}  Qg4 {[%clk 0:00:49]} 38. f3 {[%clk 0:02:18]}  Qe6 {[%clk 0:00:46]} 39. Kd3 {[%clk 0:02:14]}  f5 {[%clk 0:00:44]} 40. Qf2 {[%clk 0:02:11]}  Qf7 {[%clk 0:00:41]} 41. Ke2 {[%clk 0:02:11]}  fxe4 {[%clk 0:00:34]} 42. fxe4 {[%clk 0:02:11]}  Qxf2+ {[%clk 0:00:35]} 43. Kxf2 {[%clk 0:02:11]}  g5 {[%clk 0:00:30]} 44. hxg5 {[%clk 0:02:11]}  Bxg5 {[%clk 0:00:31]} 45. Nc7 {[%clk 0:02:11]}  a5 {[%clk 0:00:26]} 46. Ne8+ {[%clk 0:02:11]}  Kg6 {[%clk 0:00:23]} 47. Nxd6 {[%clk 0:02:12]}  Bd2 {[%clk 0:00:22]} 48. Ke2 {[%clk 0:02:11]}  Bb4 {[%clk 0:00:18]} 49. Nf5 {[%clk 0:02:11]}  Kg5 {[%clk 0:00:18]} 50. Kf3 {[%clk 0:02:12]}  Bc3 {[%clk 0:00:18]} 51. Ne3 {[%clk 0:02:11]}  Bd4 {[%clk 0:00:18]} 52. Nd5 {[%clk 0:02:11]}  Bb2 {[%clk 0:00:16]} 53. Kg2 {[%clk 0:02:09]}  Bd4 {[%clk 0:00:15]} 54. Kh3 {[%clk 0:02:09]}  Bb2 {[%clk 0:00:14]} 55. Ne3 {[%clk 0:02:09]}  Bd4 {[%clk 0:00:14]} 56. Nf1 {[%clk 0:02:09]}  Bb2 {[%clk 0:00:12]} 57. Nh2 {[%clk 0:02:10]}  Bd4 {[%clk 0:00:07]} 58. Nf3+ {[%clk 0:02:10]}  Kg6 {[%clk 0:00:06]} 59. g4 {[%clk 0:02:11]}  Bc3 {[%clk 0:00:03]} 60. Kh4 {[%clk 0:02:11]}  hxg4 {[%clk 0:00:03]} 61. Kxg4 {[%clk 0:02:12]}  Bb2 {[%clk 0:00:03]} 62. Nh4+ {[%clk 0:02:11]}  Kf6 {[%clk 0:00:04]} 63. Kh5 {[%clk 0:02:11]}  Bd4 {[%clk 0:00:04]} 64. Nf5 {[%clk 0:02:12]}  Bc3 {[%clk 0:00:04]} 65. Ne3 {[%clk 0:02:12]}  Bd2 {[%clk 0:00:04]} 66. Ng4+ {[%clk 0:02:13]}  Ke6 {[%clk 0:00:05]} 67. Kg6 {[%clk 0:02:13]}  Bf4 {[%clk 0:00:05]} 68. Nf6 {[%clk 0:02:13]}  Be3 {[%clk 0:00:05]} 69. Nh5 {[%clk 0:02:13]}  Bd2 {[%clk 0:00:04]} 70. Ng7+ {[%clk 0:02:14]}  Kd6 {[%clk 0:00:05]} 71. Kf6 {[%clk 0:02:14]}  Bh6 {[%clk 0:00:04]} 72. Nf5+ {[%clk 0:02:14]} 1-0


[Site "https://www.chess.com"]

[Event "Titled Tuesday Blitz March 22 Late 2022"]
[White "Villegas, Pierre"]
[Black "Maghsoodloo, Parham"]
[WhiteFideId "654183"]
[BlackFideId "12539929"]
[WhiteElo "2395"]
[BlackElo "2630"]
[Result "0-1"]
[Round "01"]
[TimeControl "180+1"]
[Date "2022.03.22"]
[WhiteClock "0:00:18"]
[BlackClock "0:01:15"]

1. d4 {[%clk 0:02:58]}  Nf6 {[%clk 0:02:58]} 2. c4 {[%clk 0:02:58]}  e6 {[%clk 0:02:58]} 3. Nc3 {[%clk 0:02:56]}  Bb4 {[%clk 0:02:54]} 4. f3 {[%clk 0:02:55]}  d5 {[%clk 0:02:51]} 5. a3 {[%clk 0:02:52]}  Be7 {[%clk 0:02:51]} 6. e4 {[%clk 0:02:49]}  dxe4 {[%clk 0:02:51]} 7. fxe4 {[%clk 0:02:50]}  c5 {[%clk 0:02:51]} 8. d5 {[%clk 0:02:50]}  exd5 {[%clk 0:02:47]} 9. exd5 {[%clk 0:02:51]}  Bd6 {[%clk 0:02:45]} 10. Nf3 {[%clk 0:02:43]}  O-O {[%clk 0:02:45]} 11. Be2 {[%clk 0:02:41]}  Bg4 {[%clk 0:02:45]} 12. O-O {[%clk 0:02:41]}  Nbd7 {[%clk 0:02:45]} 13. Bg5 {[%clk 0:02:36]}  h6 {[%clk 0:02:44]} 14. Bh4 {[%clk 0:02:35]}  Re8 {[%clk 0:02:43]} 15. Qd2 {[%clk 0:02:32]}  a6 {[%clk 0:02:41]} 16. Rae1 {[%clk 0:02:28]}  Qc7 {[%clk 0:02:41]} 17. h3 {[%clk 0:02:22]}  Bh5 {[%clk 0:02:29]} 18. g4 {[%clk 0:01:47]}  Bg6 {[%clk 0:02:27]} 19. Bd3 {[%clk 0:01:46]}  Rxe1 {[%clk 0:02:23]} 20. Rxe1 {[%clk 0:01:36]}  Bg3 {[%clk 0:02:20]} 21. Bxg6 {[%clk 0:01:15]}  Bxe1 {[%clk 0:02:19]} 22. Bxf7+ {[%clk 0:01:08]}  Kxf7 {[%clk 0:02:19]} 23. Bxe1 {[%clk 0:01:09]}  Re8 {[%clk 0:02:18]} 24. Kg2 {[%clk 0:01:06]}  Qb6 {[%clk 0:02:09]} 25. g5 {[%clk 0:00:58]}  hxg5 {[%clk 0:02:07]} 26. Nxg5+ {[%clk 0:00:59]}  Kg8 {[%clk 0:02:07]} 27. Ne6 {[%clk 0:00:56]}  Qb3 {[%clk 0:02:03]} 28. Qe2 {[%clk 0:00:51]}  b5 {[%clk 0:01:59]} 29. Bh4 {[%clk 0:00:35]}  Qxc4 {[%clk 0:01:50]} 30. Qxc4 {[%clk 0:00:34]}  bxc4 {[%clk 0:01:51]} 31. Bxf6 {[%clk 0:00:35]}  Nxf6 {[%clk 0:01:51]} 32. Nxc5 {[%clk 0:00:34]}  Rb8 {[%clk 0:01:48]} 33. N5a4 {[%clk 0:00:31]}  Nd7 {[%clk 0:01:31]} 34. Kg3 {[%clk 0:00:30]}  Ne5 {[%clk 0:01:31]} 35. Nc5 {[%clk 0:00:29]}  Rxb2 {[%clk 0:01:27]} 36. d6 {[%clk 0:00:29]}  Kf7 {[%clk 0:01:23]} 37. Nd5 {[%clk 0:00:18]}  Rb5 {[%clk 0:01:15]} 0-1


[Site "https://www.chess.com"]

[Event "Titled Tuesday Blitz March 22 Late 2022"]
[White "Winkels, Marcel"]
[Black "Jaferian, Koosha"]
[WhiteFideId "1003887"]
[BlackFideId "12507440"]
[WhiteElo "1900"]
[BlackElo "2030"]
[Result "0-1"]
[Round "01"]
[TimeControl "180+1"]
[Date "2022.03.22"]
[WhiteClock "0:00:05"]
[BlackClock "0:00:36"]

1. b3 {[%clk 0:02:59]}  d5 {[%clk 0:02:58]} 2. Bb2 {[%clk 0:02:59]}  Bf5 {[%clk 0:02:59]} 3. Nf3 {[%clk 0:02:58]}  e6 {[%clk 0:02:59]} 4. e3 {[%clk 0:02:57]}  Nf6 {[%clk 0:02:56]} 5. Be2 {[%clk 0:02:54]}  Bd6 {[%clk 0:02:54]} 6. d3 {[%clk 0:02:52]}  h6 {[%clk 0:02:54]} 7. Nbd2 {[%clk 0:02:52]}  Nbd7 {[%clk 0:02:53]} 8. O-O {[%clk 0:02:49]}  a5 {[%clk 0:02:53]} 9. a3 {[%clk 0:02:46]}  O-O {[%clk 0:02:53]} 10. c4 {[%clk 0:02:37]}  c6 {[%clk 0:02:44]} 11. Qc2 {[%clk 0:02:32]}  Bh7 {[%clk 0:02:43]} 12. Rfc1 {[%clk 0:02:24]}  Qe7 {[%clk 0:02:40]} 13. Qd1 {[%clk 0:02:10]}  Rfc8 {[%clk 0:02:38]} 14. d4 {[%clk 0:02:07]}  Ne4 {[%clk 0:02:20]} 15. Ne5 {[%clk 0:02:00]}  f6 {[%clk 0:02:05]} 16. Nxd7 {[%clk 0:01:55]}  Qxd7 {[%clk 0:02:06]} 17. Nxe4 {[%clk 0:01:45]}  Bxe4 {[%clk 0:02:07]} 18. Bf3 {[%clk 0:01:45]}  Bh7 {[%clk 0:02:07]} 19. c5 {[%clk 0:01:37]}  Bc7 {[%clk 0:02:02]} 20. Qe2 {[%clk 0:01:32]}  e5 {[%clk 0:02:00]} 21. g3 {[%clk 0:01:29]}  Rf8 {[%clk 0:01:51]} 22. b4 {[%clk 0:01:12]}  Rae8 {[%clk 0:01:47]} 23. Bg2 {[%clk 0:01:10]}  Qf7 {[%clk 0:01:31]} 24. Bf3 {[%clk 0:01:03]}  e4 {[%clk 0:01:17]} 25. Bh5 {[%clk 0:00:55]}  Bg6 {[%clk 0:01:13]} 26. Bg4 {[%clk 0:00:51]}  f5 {[%clk 0:01:11]} 27. Bh3 {[%clk 0:00:48]}  Bh5 {[%clk 0:01:11]} 28. Qf1 {[%clk 0:00:46]}  Qg6 {[%clk 0:01:08]} 29. Bg2 {[%clk 0:00:43]}  Bf3 {[%clk 0:01:04]} 30. b5 {[%clk 0:00:42]}  Bxg2 {[%clk 0:00:58]} 31. Kxg2 {[%clk 0:00:39]}  f4 {[%clk 0:00:57]} 32. exf4 {[%clk 0:00:25]}  Bxf4 {[%clk 0:00:58]} 33. Re1 {[%clk 0:00:22]}  Bc7 {[%clk 0:00:53]} 34. b6 {[%clk 0:00:21]}  Bb8 {[%clk 0:00:53]} 35. Qe2 {[%clk 0:00:19]}  Rf3 {[%clk 0:00:51]} 36. Bc1 {[%clk 0:00:18]}  h5 {[%clk 0:00:50]} 37. Bd2 {[%clk 0:00:16]}  h4 {[%clk 0:00:49]} 38. Be3 {[%clk 0:00:14]}  Re6 {[%clk 0:00:41]} 39. Qd2 {[%clk 0:00:13]}  hxg3 {[%clk 0:00:41]} 40. hxg3 {[%clk 0:00:12]}  Bxg3 {[%clk 0:00:42]} 41. Kf1 {[%clk 0:00:08]}  Ref6 {[%clk 0:00:35]} 42. Ke2 {[%clk 0:00:08]}  Bxf2 {[%clk 0:00:36]} 43. Rf1 {[%clk 0:00:07]}  Rxe3+ {[%clk 0:00:35]} 44. Kd1 {[%clk 0:00:05]}  Rd3 {[%clk 0:00:36]} 0-1


[Site "https://www.chess.com"]

[Event "Titled Tuesday Blitz March 22 Late 2022"]
[White "Yi, Richard"]
[Black "Cramling Bellon, Anna"]
[WhiteFideId "2079518"]
[BlackFideId "32009232"]
[WhiteElo "2147"]
[BlackElo "1905"]
[Result "1-0"]
[Round "01"]
[TimeControl "180+1"]
[Date "2022.03.22"]
[WhiteClock "0:00:09"]
[BlackClock "0:00:02"]

1. d4 {[%clk 0:03:00]}  Nf6 {[%clk 0:02:59]} 2. Nf3 {[%clk 0:02:59]}  d5 {[%clk 0:02:55]} 3. c4 {[%clk 0:02:59]}  e6 {[%clk 0:02:54]} 4. g3 {[%clk 0:02:59]}  c6 {[%clk 0:02:52]} 5. Bg2 {[%clk 0:03:00]}  Bb4+ {[%clk 0:02:51]} 6. Bd2 {[%clk 0:03:00]}  Bd6 {[%clk 0:02:51]} 7. Qc2 {[%clk 0:02:59]}  Nbd7 {[%clk 0:02:50]} 8. O-O {[%clk 0:02:59]}  O-O {[%clk 0:02:50]} 9. b3 {[%clk 0:02:56]}  Re8 {[%clk 0:02:47]} 10. Bc3 {[%clk 0:02:53]}  Ne4 {[%clk 0:02:45]} 11. Bb2 {[%clk 0:02:51]}  f5 {[%clk 0:02:45]} 12. Ne5 {[%clk 0:02:44]}  Nxe5 {[%clk 0:02:36]} 13. dxe5 {[%clk 0:02:43]}  Bc5 {[%clk 0:02:37]} 14. Nd2 {[%clk 0:02:34]}  Nxd2 {[%clk 0:01:52]} 15. Qxd2 {[%clk 0:02:33]}  dxc4 {[%clk 0:01:52]} 16. Qc3 {[%clk 0:02:18]}  Bd7 {[%clk 0:01:17]} 17. Qxc4 {[%clk 0:02:17]}  Qb6 {[%clk 0:01:08]} 18. Rac1 {[%clk 0:02:10]}  Bf8 {[%clk 0:01:04]} 19. Qa4 {[%clk 0:01:53]}  Rad8 {[%clk 0:01:01]} 20. Rfd1 {[%clk 0:01:53]}  Bc5 {[%clk 0:00:36]} 21. e3 {[%clk 0:01:52]}  Qb4 {[%clk 0:00:34]} 22. Qxb4 {[%clk 0:01:19]}  Bxb4 {[%clk 0:00:35]} 23. Bd4 {[%clk 0:01:20]}  Re7 {[%clk 0:00:16]} 24. Rc4 {[%clk 0:00:58]}  Ba5 {[%clk 0:00:10]} 25. Bxa7 {[%clk 0:00:53]}  b6 {[%clk 0:00:10]} 26. Bxc6 {[%clk 0:00:47]}  b5 {[%clk 0:00:11]} 27. Bxb5 {[%clk 0:00:43]}  Bxb5 {[%clk 0:00:10]} 28. Rcd4 {[%clk 0:00:16]}  Rxd4 {[%clk 0:00:07]} 29. Bxd4 {[%clk 0:00:17]}  Rd7 {[%clk 0:00:06]} 30. Rc1 {[%clk 0:00:16]}  Kf7 {[%clk 0:00:05]} 31. Kg2 {[%clk 0:00:16]}  Bd3 {[%clk 0:00:04]} 32. Kf3 {[%clk 0:00:14]}  Be4+ {[%clk 0:00:04]} 33. Ke2 {[%clk 0:00:15]}  Bc7 {[%clk 0:00:04]} 34. a4 {[%clk 0:00:13]}  Ke7 {[%clk 0:00:04]} 35. b4 {[%clk 0:00:13]}  Kd8 {[%clk 0:00:04]} 36. b5 {[%clk 0:00:13]}  Ba5 {[%clk 0:00:02]} 37. f3 {[%clk 0:00:13]}  Bb7 {[%clk 0:00:02]} 38. h4 {[%clk 0:00:10]}  Rc7 {[%clk 0:00:02]} 39. Rc5 {[%clk 0:00:09]}  Rxc5 {[%clk 0:00:02]} 40. Bxc5 {[%clk 0:00:10]}  Kd7 {[%clk 0:00:02]} 41. h5 {[%clk 0:00:10]}  h6 {[%clk 0:00:02]} 42. Bf8 {[%clk 0:00:09]}  g5 {[%clk 0:00:01]} 43. hxg6 {[%clk 0:00:09]}  Ke8 {[%clk 0:00:02]} 44. Bd6 {[%clk 0:00:09]} 1-0


[Site "https://www.chess.com"]